fUST/lending_fUST_20250630
["ID","MTS","AMOUNT","RATE_DAILY","PERIOD"]
[368577824,1751213461101,-500.0,0.00020744,2]
[368577825,1751213461111,-500.0,0.00020744,2]
[368577826,1751213461121,-500.0,0.00020744,2]
[368577827,1751213461130,-417.31908353,0.00020744,2]
[368577828,1751213461140,-180.72110344,0.00020744,2]
[368577829,1751213461149,-359.60088653,0.00020744,2]
[368577830,1751213461159,-500.0,0.00020744,2]
[368577831,1751213461168,-153.28155438,0.00020744,2]
[368577832,1751213461178,-500.0,0.00020744,2]
[368577833,1751213461187,-6536.85938346,0.00020762,3]
[368577834,1751213461196,-157.14764055,0.00020813,2]
[368577835,1751213461205,-284.0,0.00020856,2]
[368577836,1751213461215,-711.68,0.00020862,2]
[368577837,1751213461225,-770.46,0.00020862,2]
[368577838,1751213461235,-3134.69,0.00020862,2]
[368577839,1751213461244,-579.16,0.00020862,2]
[368577840,1751213461253,-170.97784634,0.00020862,2]
[368577841,1751213461262,-460.0,0.00020864,2]
[368577842,1751213461272,-460.0,0.00020866,2]
[368577843,1751213461282,-4547.62,0.00020866,2]
[368577844,1751213461292,-4813.95,0.00020866,2]
[368577845,1751213461301,-990.53,0.00020866,2]
[368577846,1751213461311,-460.0,0.00020866,2]
[368577847,1751213461322,-460.0,0.00020866,2]
[368577848,1751213461331,-546.86,0.00020866,2]
[368577849,1751213461340,-4925.02,0.00020866,2]
[368577850,1751213461350,-4462.53,0.00020866,2]
[368577851,1751213461359,-4832.15,0.00020866,2]
[368577852,1751213461369,-729.64,0.00020866,2]
[368577853,1751213461378,-460.0,0.00020866,2]
[368577854,1751213461388,-542.59,0.00020866,2]
[368577855,1751213461397,-2653.8,0.00020866,2]
[368577856,1751213461406,-460.0,0.00020875,2]
[368577857,1751213461416,-460.0,0.00020876,2]
[368577858,1751213461425,-460.0,0.00020876,2]
[368577859,1751213461435,-707.53,0.00020876,2]
[368577860,1751213461444,-792.53,0.00020876,2]
[368577861,1751213461453,-2414.73,0.00020876,2]
[368577862,1751213461463,-646.3,0.00020876,2]
[368577864,1751213461472,-475.64,0.00020876,2]
[368577865,1751213461481,-460.0,0.00020876,2]
[368577866,1751213461490,-1064.11,0.00020876,2]
[368577867,1751213461499,-460.0,0.00020876,2]
[368577868,1751213461508,-620.0,0.00020876,2]
[368577869,1751213461517,-1257.18,0.00020876,2]
[368577870,1751213461526,-460.0,0.00020876,2]
[368577871,1751213461536,-997.24,0.00020876,2]
[368577873,1751213461545,-696.71,0.00020876,2]
[368577875,1751213461554,-1514.83,0.00020876,2]
[368577876,1751213461563,-704.72,0.00020876,2]
[368577877,1751213461573,-460.0,0.00020877,2]
[368577878,1751213461583,-371.228903,0.00020877,2]
[368577879,1751213461592,-371.228903,0.00020877,2]
[368577880,1751213461602,-1715.34,0.00020877,2]
[368577881,1751213461611,-238.611491,0.00020877,2]
[368577882,1751213461620,-238.611491,0.00020877,2]
[368577883,1751213461629,-753.79,0.00020877,2]
[368577884,1751213461639,-594.48,0.00020877,2]
[368577885,1751213461648,-860.14,0.00020877,2]
[368577886,1751213461658,-460.0,0.00020877,2]
[368577887,1751213461667,-1152.83,0.00020877,2]
[368577888,1751213461677,-6011.46,0.00020877,2]
[368577889,1751213461686,-543.66,0.00020877,2]
[368577890,1751213461695,-460.0,0.00020878,2]
[368577891,1751213461704,-460.0,0.00020878,2]
[368577892,1751213461714,-566.23,0.00020881,2]
[368577893,1751213461723,-460.0,0.00020881,2]
[368577894,1751213461733,-460.0,0.00020881,2]
[368577895,1751213461743,-513.98,0.00020881,2]
[368577896,1751213461752,-497.57,0.00020881,2]
[368577897,1751213461761,-460.0,0.00020881,2]
[368577898,1751213461770,-460.0,0.00020881,2]
[368577899,1751213461779,-405.20263966,0.00020881,2]
[368577900,1751213461789,-638.1,0.00020881,2]
[368577901,1751213461798,-913.1,0.00020881,2]
[368577902,1751213461807,-180.82526387,0.00020881,2]
[368577903,1751213461817,-472.55,0.00020881,2]
[368577904,1751213461827,-934.56,0.00020881,2]
[368577905,1751213461841,-460.0,0.00020881,2]
[368577906,1751213461851,-994.93,0.00020881,2]
[368577907,1751213461861,-788.47,0.00020881,2]
[368577908,1751213461870,-535.69,0.00020881,2]
[368577909,1751213461880,-720.09,0.00020881,2]
[368577910,1751213461891,-460.0,0.00020881,2]
[368577911,1751213461903,-732.67,0.00020881,2]
[368577912,1751213461913,-460.0,0.00020881,2]
[368577913,1751213461923,-3943.89,0.00020882,2]
[368577914,1751213461932,-749.97,0.00020882,2]
[368577915,1751213461941,-2273.88,0.00020882,2]
[368577916,1751213461954,-1592.72,0.00020882,2]
[368577917,1751213461964,-1393.05,0.00020882,2]
[368577918,1751213461974,-6858.32,0.00020882,2]
[368577919,1751213461984,-2299.91,0.00020882,2]
[368577920,1751213461993,-1649.67,0.00020882,2]
[368577921,1751213462003,-600.0,0.00020882,2]
[368577922,1751213462012,-360.93214154,0.00020882,2]
[368577923,1751213462131,-240.62142769,0.00020882,2]
[368577924,1751213462141,-460.0,0.00020883,2]
[368577925,1751213462151,-239.14511559,0.00020883,2]
[368577926,1751213462160,-460.0,0.00020883,2]
[368577927,1751213462170,-315.59754751,0.00020883,2]
[368577928,1751213462180,-189.35852851,0.00020883,2]
[368577929,1751213462189,-196.344,0.00020884,2]
[368577930,1751213462199,-196.344,0.00020884,2]
[368577931,1751213462209,-399.956926,0.00020884,2]
[368577932,1751213462219,-399.956926,0.00020884,2]
[368577933,1751213462228,-460.0,0.00020892,2]
[368577934,1751213462238,-236.050943,0.00020892,2]
[368577935,1751213462247,-236.050943,0.00020892,2]
[368577936,1751213462257,-222.271437,0.00020892,2]
[368577937,1751213462266,-222.271437,0.00020892,2]
[368577938,1751213462275,-151.0,0.00020892,2]
[368577939,1751213462284,-954.05,0.00020892,2]
[368577940,1751213462294,-247.159348,0.00020892,2]
[368577941,1751213462303,-460.0,0.00020892,2]
[368577942,1751213462313,-460.0,0.00020892,2]
[368577943,1751213462323,-844.34,0.00020892,2]
[368577944,1751213462332,-460.0,0.00020892,2]
[368577945,1751213462342,-1863.26,0.00020892,2]
[368577946,1751213462351,-1075.67,0.00020892,2]
[368577947,1751213462361,-1321.87,0.00020892,2]
[368577948,1751213462371,-460.0,0.00020892,2]
[368577949,1751213462380,-2266.93,0.00020892,2]
[368577950,1751213462390,-1689.29,0.00020892,2]
[368577951,1751213462400,-460.0,0.00020892,2]
[368577952,1751213462410,-632.62,0.00020892,2]
[368577953,1751213462419,-151.0,0.00020894,2]
[368577954,1751213462429,-199.505934,0.00020894,2]
[368577955,1751213462438,-2416.46,0.00020894,2]
[368577956,1751213462448,-460.0,0.00020894,2]
[368577957,1751213462457,-6536.85938346,0.00020969,4]
[368577958,1751213462467,-151.0,0.00021,2]
[368577959,1751213462476,-198.702258,0.00021011,4]
[368577960,1751213462485,-1000.0,0.00021068,2]
[368577961,1751213462494,-1000.0,0.00021068,2]
[368577962,1751213462504,-1000.0,0.00021068,2]
[368577963,1751213462514,-1000.0,0.00021068,2]
[368577964,1751213462524,-1000.0,0.00021068,2]
[368577965,1751213462533,-1000.0,0.00021068,2]
[368577966,1751213462543,-1000.0,0.00021068,2]
[368577967,1751213462552,-1000.0,0.00021068,2]
[368577968,1751213462562,-1000.0,0.00021068,2]
[368577969,1751213462573,-858.95690601,0.00021068,2]
[368577970,1751213462582,-2489.52,0.000211,2]
[368577971,1751213462591,-800.0,0.00021125,2]
[368577972,1751213462602,-501.89998688,0.00021128,2]
[368577973,1751213462611,-1000.0,0.00021128,2]
[368577974,1751213462620,-501.07472552,0.00021128,2]
[368577975,1751213462630,-250.0,0.00021128,2]
[368577976,1751213462640,-600.0,0.00021128,2]
[368577977,1751213462650,-600.0,0.00021128,2]
[368577978,1751213462660,-600.0,0.00021128,2]
[368577979,1751213462670,-600.0,0.00021128,2]
[368577980,1751213462679,-600.0,0.00021128,2]
[368577981,1751213462689,-198.94643077,0.00021128,2]
[368577982,1751213462698,-600.0,0.00021128,2]
[368577983,1751213462709,-600.0,0.00021128,2]
[368577984,1751213462718,-600.0,0.00021128,2]
[368577985,1751213462727,-600.0,0.00021128,2]
[368577986,1751213462737,-600.0,0.00021128,2]
[368577987,1751213462746,-600.0,0.00021128,2]
[368577988,1751213462755,-420.61607077,0.00021128,2]
[368577989,1751213462764,-280.41071385,0.00021128,2]
[368577990,1751213462774,-711.68,0.00021136,2]
[368577991,1751213462783,-770.46,0.00021136,2]
[368577992,1751213462792,-3134.69,0.00021136,2]
[368577993,1751213462802,-579.16,0.00021136,2]
[368577994,1751213462812,-460.0,0.00021138,2]
[368577995,1751213462822,-460.0,0.0002114,2]
[368577996,1751213462832,-4547.62,0.0002114,2]
[368577997,1751213462842,-4813.95,0.0002114,2]
[368577998,1751213462851,-990.53,0.0002114,2]
[368577999,1751213462861,-460.0,0.0002114,2]
[368578000,1751213462870,-460.0,0.0002114,2]
[368578001,1751213462880,-546.86,0.0002114,2]
[368578002,1751213462889,-4925.02,0.0002114,2]
[368578003,1751213462902,-4462.53,0.0002114,2]
[368578004,1751213462912,-4832.15,0.0002114,2]
[368578005,1751213462921,-729.64,0.0002114,2]
[368578006,1751213462930,-460.0,0.0002114,2]
[368578007,1751213462941,-2653.8,0.0002114,2]
[368578008,1751213462950,-460.0,0.00021149,2]
[368578009,1751213462959,-460.0,0.0002115,2]
[368578010,1751213462970,-151.0,0.0002115,2]
[368578011,1751213462980,-295.703095,0.0002115,2]
[368578012,1751213462989,-295.703095,0.0002115,2]
[368578013,1751213462999,-707.53,0.0002115,2]
[368578014,1751213463008,-792.53,0.0002115,2]
[368578015,1751213463017,-151.0,0.0002115,2]
[368578016,1751213463026,-2414.73,0.0002115,2]
[368578017,1751213463036,-646.3,0.0002115,2]
[368578018,1751213463046,-475.64,0.0002115,2]
[368578019,1751213463056,-490.21,0.0002115,2]
[368578020,1751213463065,-1064.11,0.0002115,2]
[368578021,1751213463076,-460.0,0.0002115,2]
[368578022,1751213463086,-620.0,0.0002115,2]
[368578023,1751213463096,-1257.18,0.0002115,2]
[368578024,1751213463106,-460.0,0.0002115,2]
[368578025,1751213463117,-997.24,0.0002115,2]
[368578026,1751213463127,-696.71,0.0002115,2]
[368578027,1751213463136,-1514.83,0.0002115,2]
[368578028,1751213463146,-704.72,0.0002115,2]
[368578029,1751213463155,-460.0,0.00021151,2]
[368578030,1751213463165,-1715.34,0.00021151,2]
[368578031,1751213463175,-753.79,0.00021151,2]
[368578032,1751213463183,-594.48,0.00021151,2]
[368578033,1751213463193,-860.14,0.00021151,2]
[368578034,1751213463208,-460.0,0.00021151,2]
[368578035,1751213463218,-1152.83,0.00021151,2]
[368578036,1751213463227,-6011.46,0.00021151,2]
[368578037,1751213463237,-543.66,0.00021151,2]
[368578038,1751213463246,-384.33000003,0.00021152,2]
[368578039,1751213463256,-460.0,0.00021152,2]
[368578040,1751213463266,-566.23,0.00021155,2]
[368578041,1751213463276,-460.0,0.00021155,2]
[368578042,1751213463285,-460.0,0.00021155,2]
[368578043,1751213463295,-513.98,0.00021155,2]
[368578044,1751213463305,-497.57,0.00021155,2]
[368578045,1751213463315,-460.0,0.00021155,2]
[368578046,1751213463326,-460.0,0.00021155,2]
[368578047,1751213463336,-638.1,0.00021155,2]
[368578048,1751213463346,-913.1,0.00021155,2]
[368578049,1751213463356,-472.55,0.00021155,2]
[368578050,1751213463365,-934.56,0.00021155,2]
[368578051,1751213463376,-460.0,0.00021155,2]
[368578052,1751213463386,-994.93,0.00021155,2]
[368578053,1751213463396,-788.47,0.00021155,2]
[368578054,1751213463406,-535.69,0.00021155,2]
[368578055,1751213463416,-720.09,0.00021155,2]
[368578056,1751213463426,-460.0,0.00021155,2]
[368578057,1751213463436,-732.67,0.00021155,2]
[368578058,1751213463445,-460.0,0.00021155,2]
[368578059,1751213463455,-3943.89,0.00021156,2]
[368578060,1751213463465,-749.97,0.00021156,2]
[368578061,1751213463475,-2273.88,0.00021156,2]
[368578062,1751213463484,-1592.72,0.00021156,2]
[368578063,1751213463494,-1393.05,0.00021156,2]
[368578064,1751213463503,-6858.32,0.00021156,2]
[368578065,1751213463513,-2299.91,0.00021156,2]
[368578066,1751213463523,-1649.67,0.00021156,2]
[368578067,1751213463532,-460.0,0.00021157,2]
[368578068,1751213463542,-460.0,0.00021157,2]
[368578069,1751213463551,-460.0,0.00021166,2]
[368578070,1751213463561,-151.0,0.00021166,2]
[368578071,1751213463572,-151.0,0.00021166,2]
[368578072,1751213463582,-292.96596,0.00021166,2]
[368578073,1751213463591,-954.05,0.00021166,2]
[368578074,1751213463601,-460.0,0.00021166,2]
[368578075,1751213463611,-844.34,0.00021166,2]
[368578076,1751213463620,-460.0,0.00021166,2]
[368578077,1751213463630,-1863.26,0.00021166,2]
[368578078,1751213463640,-1075.67,0.00021166,2]
[368578079,1751213463649,-1321.87,0.00021166,2]
[368578080,1751213463659,-460.0,0.00021166,2]
[368578081,1751213463668,-2266.93,0.00021166,2]
[368578082,1751213463678,-1689.29,0.00021166,2]
[368578083,1751213463688,-460.0,0.00021166,2]
[368578084,1751213463697,-632.62,0.00021166,2]
[368578085,1751213463707,-460.0,0.00021166,2]
[368578086,1751213463717,-460.0,0.00021166,2]
[368578087,1751213463726,-460.0,0.00021166,2]
[368578088,1751213463736,-460.0,0.00021166,2]
[368578089,1751213463746,-460.0,0.00021166,2]
[368578090,1751213463756,-460.0,0.00021166,2]
[368578091,1751213463765,-460.0,0.00021166,2]
[368578092,1751213463775,-460.0,0.00021166,2]
[368578093,1751213463785,-360.77019711,0.00021166,2]
[368578094,1751213463795,-151.0,0.00021167,2]
[368578095,1751213463804,-151.0,0.00021167,2]
[368578096,1751213463814,-151.0,0.00021168,2]
[368578097,1751213463825,-2416.46,0.00021168,2]
[368578098,1751213463834,-460.0,0.00021168,2]
[368578099,1751213463844,-223.0315306,0.00021172,2]
[368578100,1751213463854,-6536.85938346,0.00021176,4]
[368578101,1751213463863,-559.454528,0.00021176,2]
[368578102,1751213463873,-559.454528,0.00021176,2]
[368578103,1751213463882,-2500.0,0.00021177,2]
[368578104,1751213463892,-640.0,0.000212,2]
[368578105,1751213463904,-193.96505387,0.00021227,2]
[368578106,1751213463913,-1500.0,0.00021261,2]
[368578107,1751213463923,-500.0,0.00021273,2]
[368578108,1751213463932,-611.08532941,0.00021273,2]
[368578109,1751213463942,-534.98311928,0.00021273,2]
[368578110,1751213463951,-1000.0,0.00021292,2]
[368578111,1751213463961,-500.8586686,0.00021292,2]
[368578112,1751213463971,-1000.0,0.00021292,2]
[368578113,1751213463980,-909.46648444,0.00021292,2]
[368578114,1751213463989,-500.0,0.00021356,2]
[368578115,1751213463999,-500.0,0.0002136,2]
[368578116,1751213464008,-500.0,0.0002136,2]
[368578117,1751213464017,-500.0,0.0002136,2]
[368578118,1751213464027,-519.34579505,0.0002136,2]
[368578119,1751213464036,-500.0,0.0002136,2]
[368578120,1751213464045,-500.0,0.0002136,2]
[368578121,1751213464055,-500.0,0.0002136,2]
[368578122,1751213464064,-500.0,0.0002136,2]
[368578123,1751213464074,-600.0,0.0002136,2]
[368578124,1751213464084,-500.0,0.0002136,2]
[368578125,1751213464094,-500.0,0.0002136,2]
[368578126,1751213464103,-500.45198962,0.0002136,2]
[368578127,1751213464112,-500.0,0.0002136,2]
[368578128,1751213464122,-500.0,0.0002136,2]
[368578129,1751213464242,-500.0,0.0002136,2]
[368578130,1751213464253,-6536.85938346,0.00021383,5]
[368578131,1751213464262,-500.0,0.00021386,2]
[368578132,1751213464272,-500.0,0.00021389,2]
[368578133,1751213464282,-500.0,0.00021394,2]
[368578134,1751213464292,-501.17660699,0.00021394,2]
[368578135,1751213464301,-500.0,0.00021394,2]
[368578136,1751213464311,-151.0,0.00021401,2]
[368578137,1751213464322,-711.68,0.0002141,2]
[368578138,1751213464331,-770.46,0.0002141,2]
[368578139,1751213464340,-3134.69,0.0002141,2]
[368578140,1751213464350,-579.16,0.0002141,2]
[368578141,1751213464359,-460.0,0.00021412,2]
[368578142,1751213464369,-460.0,0.00021414,2]
[368578143,1751213464379,-4547.62,0.00021414,2]
[368578144,1751213464388,-4813.95,0.00021414,2]
[368578145,1751213464398,-990.53,0.00021414,2]
[368578146,1751213464407,-460.0,0.00021414,2]
[368578147,1751213464417,-460.0,0.00021414,2]
[368578148,1751213464426,-546.86,0.00021414,2]
[368578149,1751213464436,-4925.02,0.00021414,2]
[368578150,1751213464445,-4462.53,0.00021414,2]
[368578151,1751213464454,-4832.15,0.00021414,2]
[368578152,1751213464464,-729.64,0.00021414,2]
[368578153,1751213464473,-460.0,0.00021414,2]
[368578154,1751213464482,-2653.8,0.00021414,2]
[368578155,1751213464492,-460.0,0.00021423,2]
[368578156,1751213464501,-460.0,0.00021424,2]
[368578157,1751213464510,-707.53,0.00021424,2]
[368578158,1751213464520,-792.53,0.00021424,2]
[368578159,1751213464529,-2414.73,0.00021424,2]
[368578160,1751213464538,-646.3,0.00021424,2]
[368578161,1751213464547,-475.64,0.00021424,2]
[368578162,1751213464557,-1064.11,0.00021424,2]
[368578163,1751213464566,-460.0,0.00021424,2]
[368578164,1751213464576,-620.0,0.00021424,2]
[368578165,1751213464585,-1257.18,0.00021424,2]
[368578166,1751213464595,-238.611491,0.00021424,2]
[368578167,1751213464605,-238.611491,0.00021424,2]
[368578168,1751213464614,-460.0,0.00021424,2]
[368578169,1751213464623,-997.24,0.00021424,2]
[368578170,1751213464633,-696.71,0.00021424,2]
[368578171,1751213464642,-1514.83,0.00021424,2]
[368578172,1751213464652,-704.72,0.00021424,2]
[368578173,1751213464661,-2200.0,0.00021425,2]
[368578174,1751213464671,-151.0,0.00021425,2]
[368578175,1751213464680,-151.0,0.00021425,2]
[368578176,1751213464690,-151.0,0.00021425,2]
[368578177,1751213464699,-371.228903,0.00021425,2]
[368578178,1751213464709,-460.0,0.00021425,2]
[368578179,1751213464719,-371.228903,0.00021425,2]
[368578180,1751213464728,-1715.34,0.00021425,2]
[368578181,1751213464738,-753.79,0.00021425,2]
[368578182,1751213464747,-594.48,0.00021425,2]
[368578183,1751213464756,-860.14,0.00021425,2]
[368578184,1751213464766,-460.0,0.00021425,2]
[368578185,1751213464775,-1152.83,0.00021425,2]
[368578186,1751213464785,-6011.46,0.00021425,2]
[368578187,1751213464794,-543.66,0.00021425,2]
[368578188,1751213464803,-222.77221466,0.00021426,2]
[368578189,1751213464813,-566.23,0.00021429,2]
[368578190,1751213464822,-460.0,0.00021429,2]
[368578191,1751213464832,-460.0,0.00021429,2]
[368578192,1751213464841,-513.98,0.00021429,2]
[368578193,1751213464850,-497.57,0.00021429,2]
[368578194,1751213464860,-460.0,0.00021429,2]
[368578195,1751213464870,-253.53554263,0.00021429,2]
[368578196,1751213464879,-638.1,0.00021429,2]
[368578197,1751213464892,-913.1,0.00021429,2]
[368578198,1751213464902,-472.55,0.00021429,2]
[368578199,1751213464911,-934.56,0.00021429,2]
[368578200,1751213464921,-460.0,0.00021429,2]
[368578201,1751213464931,-994.93,0.00021429,2]
[368578202,1751213464941,-788.47,0.00021429,2]
[368578203,1751213464950,-535.69,0.00021429,2]
[368578204,1751213464960,-720.09,0.00021429,2]
[368578205,1751213464973,-460.0,0.00021429,2]
[368578206,1751213464983,-732.67,0.00021429,2]
[368578207,1751213464992,-460.0,0.00021429,2]
[368578208,1751213465002,-151.0,0.0002143,2]
[368578209,1751213465011,-3943.89,0.0002143,2]
[368578210,1751213465021,-749.97,0.0002143,2]
[368578211,1751213465030,-2273.88,0.0002143,2]
[368578212,1751213465040,-1592.72,0.0002143,2]
[368578213,1751213465049,-1393.05,0.0002143,2]
[368578214,1751213465058,-6858.32,0.0002143,2]
[368578215,1751213465068,-2299.91,0.0002143,2]
[368578216,1751213465079,-1649.67,0.0002143,2]
[368578217,1751213465088,-460.0,0.00021431,2]
[368578218,1751213465097,-460.0,0.00021431,2]
[368578219,1751213465106,-151.0,0.00021432,2]
[368578220,1751213465116,-196.344,0.00021432,2]
[368578221,1751213465125,-196.344,0.00021432,2]
[368578222,1751213465135,-399.956926,0.00021432,2]
[368578223,1751213465144,-399.956926,0.00021432,2]
[368578224,1751213465162,-460.0,0.0002144,2]
[368578225,1751213465178,-222.271437,0.0002144,2]
[368578226,1751213465192,-222.271437,0.0002144,2]
[368578227,1751213465209,-151.0,0.0002144,2]
[368578228,1751213465226,-954.05,0.0002144,2]
[368578229,1751213465244,-460.0,0.0002144,2]
[368578230,1751213465260,-844.34,0.0002144,2]
[368578231,1751213465275,-460.0,0.0002144,2]
[368578232,1751213465291,-1863.26,0.0002144,2]
[368578233,1751213465305,-1075.67,0.0002144,2]
[368578234,1751213465318,-1321.87,0.0002144,2]
[368578235,1751213465335,-460.0,0.0002144,2]
[368578236,1751213465351,-2266.93,0.0002144,2]
[368578237,1751213465368,-1689.29,0.0002144,2]
[368578239,1751213465386,-460.0,0.0002144,2]
[368578241,1751213465399,-632.62,0.0002144,2]
[368578243,1751213465410,-236.050943,0.00021441,2]
[368578244,1751213465427,-236.050943,0.00021441,2]
[368578245,1751213465441,-2416.46,0.00021442,2]
[368578246,1751213465454,-460.0,0.00021442,2]
[368578247,1751213465468,-157.14764055,0.00021442,2]
[368578248,1751213465483,-151.0,0.00021444,2]
[368578249,1751213465495,-157.99368669,0.00021479,2]
[368578250,1751213465508,-157.99368671,0.00021479,2]
[368578251,1751213465521,-193.96505387,0.00021568,2]
[368578252,1751213465535,-6536.85938346,0.0002159,5]
[368578253,1751213465548,-1500.0,0.00021676,2]
[368578254,1751213465560,-301.18190527,0.00021676,2]
[368578255,1751213465574,-711.68,0.00021684,2]
[368578256,1751213465586,-770.46,0.00021684,2]
[368578257,1751213465599,-3134.69,0.00021684,2]
[368578258,1751213465614,-579.16,0.00021684,2]
[368578259,1751213465626,-460.0,0.00021686,2]
[368578260,1751213465639,-460.0,0.00021688,2]
[368578261,1751213465652,-4547.62,0.00021688,2]
[368578262,1751213465666,-4813.95,0.00021688,2]
[368578263,1751213465679,-990.53,0.00021688,2]
[368578264,1751213465692,-460.0,0.00021688,2]
[368578265,1751213465706,-460.0,0.00021688,2]
[368578266,1751213465719,-546.86,0.00021688,2]
[368578267,1751213465731,-4925.02,0.00021688,2]
[368578268,1751213465744,-4832.15,0.00021688,2]
[368578269,1751213465758,-729.64,0.00021688,2]
[368578270,1751213465771,-460.0,0.00021688,2]
[368578271,1751213465784,-2653.8,0.00021688,2]
[368578272,1751213465796,-460.0,0.00021697,2]
[368578273,1751213465809,-460.0,0.00021698,2]
[368578274,1751213465821,-295.703095,0.00021698,2]
[368578275,1751213465834,-295.703095,0.00021698,2]
[368578276,1751213465847,-707.53,0.00021698,2]
[368578277,1751213465860,-792.53,0.00021698,2]
[368578278,1751213465873,-151.0,0.00021698,2]
[368578279,1751213465885,-2414.73,0.00021698,2]
[368578280,1751213465899,-646.3,0.00021698,2]
[368578281,1751213465912,-475.64,0.00021698,2]
[368578282,1751213465925,-1064.11,0.00021698,2]
[368578283,1751213465938,-460.0,0.00021698,2]
[368578284,1751213465950,-620.0,0.00021698,2]
[368578285,1751213465963,-1257.18,0.00021698,2]
[368578286,1751213465976,-460.0,0.00021698,2]
[368578287,1751213465989,-997.24,0.00021698,2]
[368578288,1751213466001,-696.71,0.00021698,2]
[368578289,1751213466014,-1514.83,0.00021698,2]
[368578290,1751213466027,-704.72,0.00021698,2]
[368578291,1751213466040,-460.0,0.00021699,2]
[368578292,1751213466053,-1715.34,0.00021699,2]
[368578293,1751213466066,-753.79,0.00021699,2]
[368578294,1751213466081,-594.48,0.00021699,2]
[368578295,1751213466093,-860.14,0.00021699,2]
[368578296,1751213466106,-460.0,0.00021699,2]
[368578297,1751213466119,-1152.83,0.00021699,2]
[368578298,1751213466133,-6011.46,0.00021699,2]
[368578299,1751213466146,-543.66,0.00021699,2]
[368578300,1751213466160,-566.23,0.00021703,2]
[368578301,1751213466173,-460.0,0.00021703,2]
[368578302,1751213466187,-460.0,0.00021703,2]
[368578303,1751213466199,-513.98,0.00021703,2]
[368578304,1751213466212,-497.57,0.00021703,2]
[368578305,1751213466225,-460.0,0.00021703,2]
[368578306,1751213466238,-638.1,0.00021703,2]
[368578307,1751213466251,-913.1,0.00021703,2]
[368578308,1751213466264,-472.55,0.00021703,2]
[368578309,1751213466278,-934.56,0.00021703,2]
[368578310,1751213466292,-460.0,0.00021703,2]
[368578311,1751213466305,-994.93,0.00021703,2]
[368578312,1751213466316,-788.47,0.00021703,2]
[368578313,1751213466326,-535.69,0.00021703,2]
[368578314,1751213466336,-720.09,0.00021703,2]
[368578315,1751213466345,-460.0,0.00021703,2]
[368578316,1751213466355,-732.67,0.00021703,2]
[368578317,1751213466364,-460.0,0.00021703,2]
[368578318,1751213466374,-214.25267558,0.00021704,2]
[368578319,1751213466384,-3943.89,0.00021704,2]
[368578320,1751213466394,-749.97,0.00021704,2]
[368578321,1751213466581,-2273.88,0.00021704,2]
[368578322,1751213466603,-1592.72,0.00021704,2]
[368578323,1751213466615,-1393.05,0.00021704,2]
[368578324,1751213466625,-6858.32,0.00021704,2]
[368578325,1751213466634,-2299.91,0.00021704,2]
[368578326,1751213466643,-1649.67,0.00021704,2]
[368578327,1751213466653,-460.0,0.00021705,2]
[368578328,1751213466664,-460.0,0.00021705,2]
[368578329,1751213466673,-460.0,0.00021714,2]